bitfinex-derivatives/quotes_BTCF0:USTF0_20260127
["timestamp","ask_amount","ask_price","bid_price","bid_amount"]
[1769504369445,0.1096617,88240.0,88230.0,0.011349]
[1769504373350,0.1096617,88240.0,88227.0,0.011349]
[1769504373546,0.1096617,88240.0,88229.0,0.011349]
[1769504379453,0.1096617,88240.0,88226.0,0.011349]
[1769504379652,0.1096617,88240.0,88228.0,0.011349]
[1769504381757,0.1096617,88240.0,88225.0,0.011349]
[1769504384257,0.1096617,88240.0,88227.0,0.011349]
[1769504384748,0.1096617,88240.0,88220.0,0.10212]
[1769504386452,0.1096617,88240.0,88222.0,0.01135]
[1769504389264,0.1096617,88240.0,88225.0,0.011349]
[1769504389763,0.1096617,88240.0,88221.0,0.01135]
[1769504391670,0.11018985,88236.0,88212.0,0.11495626]
[1769504391859,0.11018985,88234.0,88212.0,0.11495626]
[1769504393359,0.11018985,88234.0,88214.0,0.011351]
[1769504393664,0.11018985,88234.0,88217.0,0.01135]
[1769504394769,0.11018985,88234.0,88220.0,0.01135]
[1769504400282,0.11018985,88234.0,88212.0,0.11495626]
[1769504400283,0.11018985,88234.0,88215.0,0.011351]
[1769504400466,0.11018985,88234.0,88218.0,0.01135]
[1769504401466,0.11018985,88234.0,88213.0,0.011351]
[1769504401868,0.11018985,88234.0,88216.0,0.011351]
[1769504402368,0.11018985,88234.0,88207.0,0.2132684]
[1769504402874,0.11018985,88234.0,88213.0,0.011351]
[1769504403174,0.10871048,88230.0,88209.0,0.011351]
[1769504405871,0.10871048,88222.0,88207.0,0.10212]
[1769504407171,0.10871048,88222.0,88209.0,0.011351]
[1769504409575,0.10871048,88222.0,88207.0,0.10212]
[1769504411077,0.10871048,88222.0,88209.0,0.011351]
[1769504411277,0.10871048,88222.0,88207.0,0.10212]
[1769504415777,0.10871048,88218.0,88197.0,0.10216]
[1769504415971,0.10871048,88218.0,88200.0,0.16434758]
[1769504416172,0.01135,88219.0,88200.0,0.011353]
[1769504416173,0.08864632,88211.0,88200.0,0.011353]
[1769504416383,0.08864632,88211.0,88197.0,0.10216]
[1769504416776,0.08864632,88211.0,88200.0,0.011353]
[1769504417185,0.08864632,88209.0,88200.0,0.011353]
[1769504417480,0.08864632,88209.0,88197.0,0.10216]
[1769504417783,0.08864632,88209.0,88200.0,0.011353]
[1769504418174,0.08864632,88209.0,88197.0,0.03548854]
[1769504420090,0.08864632,88209.0,88196.0,0.011353]
[1769504420969,0.08864632,88209.0,88193.0,0.01929119]
[1769504421486,0.09999832,88209.0,88193.0,0.00793719]
[1769504422583,0.08864632,88209.0,88193.0,0.01929119]
[1769504426086,0.011352,88208.0,88193.0,0.00793719]
[1769504426383,0.00011757,88210.0,88193.0,0.00793719]
[1769504427484,0.011352,88209.0,88193.0,0.00793719]
[1769504428789,0.00011757,88210.0,88193.0,0.01929019]
[1769504428988,0.16446515,88210.0,88193.0,0.01929019]
[1769504429178,0.011348,88237.0,88200.0,0.28434758]
[1769504429379,0.01135,88219.0,88201.0,0.12]
[1769504429987,0.11336069,88218.0,88201.0,0.12]
[1769504430589,0.011351,88217.0,88201.0,0.12]
[1769504430788,0.10216,88216.0,88201.0,0.12]
[1769504430983,0.10216,88216.0,88200.0,0.16434758]
[1769504435386,0.10216,88216.0,88201.0,0.12]
[1769504435581,0.10216,88216.0,88202.0,0.011352]
[1769504435889,0.10216,88215.0,88206.0,0.12]
[1769504436090,0.10216,88217.0,88206.0,0.12]
[1769504436892,0.113511,88217.0,88199.0,0.011353]
[1769504437295,0.011351,88215.0,88199.0,0.011353]
[1769504437994,0.011351,88215.0,88196.0,0.011353]
[1769504438693,0.011351,88215.0,88198.0,0.011353]
[1769504439194,0.00884739,88214.0,88198.0,0.011353]
[1769504439892,0.00884739,88214.0,88202.0,0.011352]
[1769504440889,0.11100739,88217.0,88202.0,0.12840286]
[1769504441195,0.00884739,88216.0,88202.0,0.12840286]
[1769504441381,0.00884739,88216.0,88202.0,0.11705086]
[1769504441895,0.00649617,88215.0,88202.0,0.11705086]
[1769504443084,0.00649617,88209.0,88196.0,0.1178346]
[1769504444085,0.00750719,88208.0,88195.0,0.10216]
[1769504444286,0.00750719,88204.0,88195.0,0.10216]
[1769504444490,0.00750719,88202.0,88193.0,0.00793719]
[1769504446589,0.011353,88201.0,88193.0,0.00793719]
[1769504446893,0.00834282,88196.0,88188.0,0.00113394]
[1769504447090,0.00834282,88196.0,88184.0,0.10216]
[1769504447693,0.00834282,88196.0,88184.0,0.21900513]
[1769504447893,0.00834282,88196.0,88185.0,0.11684513]
[1769504448096,0.011353,88197.0,88185.0,0.11684513]
[1769504448294,0.02081759,88200.0,88185.0,0.11684513]
[1769504451093,0.011353,88198.0,88185.0,0.11684513]
[1769504452796,0.00927692,88190.0,88177.0,0.11690769]
[1769504453094,0.00927692,88183.0,88170.0,0.10216]
[1769504453686,0.01097522,88181.0,88170.0,0.10216]
[1769504453901,0.011356,88177.0,88167.0,0.11690769]
[1769504455095,0.011356,88175.0,88167.0,0.11690769]
[1769504457501,0.011355,88179.0,88167.0,0.11690769]
[1769504457896,0.011356,88177.0,88167.0,0.11690769]
[1769504458405,0.01324214,88176.0,88163.0,0.11696849]
[1769504459408,0.011355,88180.0,88163.0,0.11696849]
[1769504460002,0.02457739,88172.0,88168.0,2e-07]
[1769504460203,0.011357,88170.0,88162.0,0.10216]
[1769504460701,0.01322139,88179.0,88163.0,0.11696849]
[1769504460896,0.02457739,88176.0,88163.0,0.11696849]
[1769504461102,0.0013,88188.0,88167.0,0.11696849]
[1769504461302,0.113554,88187.0,88171.0,0.11696849]
[1769504463314,0.113554,88187.0,88171.0,0.12832449]
[1769504463612,0.1022,88187.0,88171.0,0.12832449]
[1769504465208,0.1022,88187.0,88171.0,0.11696849]
[1769504465719,0.1022,88187.0,88178.0,0.11696849]
[1769504465905,0.02063979,88194.0,88178.0,0.11696849]
[1769504466106,0.1022,88191.0,88178.0,0.12832349]
[1769504466908,0.12283979,88194.0,88178.0,0.12832349]
[1769504467113,0.03199279,88199.0,88181.0,0.11696849]
[1769504467312,0.0013,88208.0,88185.0,0.11696849]
[1769504467313,0.1022,88201.0,88185.0,0.11696849]
[1769504467617,0.011353,88200.0,88185.0,0.11696849]
[1769504470114,0.02124954,88194.0,88177.0,0.11696849]
[1769504470316,0.02124954,88193.0,88177.0,0.11696849]
[1769504470711,0.16434758,88200.0,88177.0,0.11696849]
[1769504470712,0.011354,88192.0,88177.0,0.11696849]
[1769504471915,0.02124954,88196.0,88177.0,0.11696849]
[1769504473512,0.011354,88191.0,88177.0,0.11696849]
[1769504474619,0.011354,88189.0,88177.0,0.11696849]
[1769504475418,0.011354,88191.0,88177.0,0.11696849]
[1769504476722,0.02124954,88196.0,88177.0,0.11696849]
[1769504476920,0.02275407,88200.0,88177.0,0.12832449]
[1769504477218,0.011353,88197.0,88181.0,0.11696849]
[1769504477428,0.02275407,88200.0,88181.0,0.11696849]
[1769504478427,0.011353,88196.0,88181.0,0.11696849]
[1769504479114,0.02295297,88206.0,88181.0,0.11696849]
[1769504479318,0.011352,88205.0,88189.0,0.11696849]
[1769504479914,0.012652,88208.0,88189.0,0.11696849]
[1769504480408,0.011352,88204.0,88189.0,0.11696849]
[1769504480621,0.011352,88207.0,88189.0,0.11696849]
[1769504481621,0.011352,88207.0,88191.0,0.11561056]
[1769504482317,0.0013,88208.0,88193.0,0.11561056]
[1769504482718,0.32781811,88215.0,88195.0,0.11561056]
[1769504482923,0.1022,88215.0,88198.0,0.11561056]
[1769504483617,0.011351,88214.0,88198.0,0.11561056]
[1769504484815,0.1022,88215.0,88200.0,0.10958263]
[1769504488529,0.011351,88214.0,88200.0,0.10958263]
[1769504488930,0.011351,88211.0,88200.0,0.10958263]
[1769504489434,0.10870797,88214.0,88194.0,0.10216]
[1769504489824,0.011353,88201.0,88188.0,0.00113394]
[1769504490832,0.011354,88192.0,88180.0,0.10216]
[1769504491221,0.10870797,88195.0,88180.0,0.21174263]
[1769504491419,0.10870797,88195.0,88181.0,0.10958263]
[1769504491624,0.12006197,88194.0,88180.0,0.10216]
[1769504491835,0.10870797,88190.0,88180.0,0.10216]
[1769504493939,0.10870797,88188.0,88176.0,0.10958263]
[1769504498430,0.10870797,88186.0,88172.0,0.10216]
[1769504499127,0.10870797,88186.0,88173.0,0.10958263]
[1769504499331,0.011355,88185.0,88173.0,0.10958263]
[1769504499733,0.011355,88182.0,88173.0,0.10958263]
[1769504499933,0.12006297,88186.0,88173.0,0.10958263]
[1769504500439,0.10870797,88186.0,88173.0,0.10958263]
[1769504500839,0.12006197,88190.0,88173.0,0.10958263]
[1769504501041,0.12006197,88190.0,88173.0,0.12093863]
[1769504501238,0.10870797,88190.0,88173.0,0.12093863]
[1769504501542,0.10870797,88190.0,88176.0,0.10958263]
[1769504501742,0.10870797,88190.0,88177.0,0.12093863]
[1769504501938,0.10216,88191.0,88179.0,0.12093763]
[1769504505652,0.011353,88196.0,88179.0,0.12093763]
[1769504505841,0.1022,88195.0,88179.0,0.12093763]
[1769504506146,0.1022,88195.0,88183.0,0.10958263]
[1769504506547,0.12006097,88198.0,88183.0,0.10958263]
[1769504506847,0.1022,88195.0,88183.0,0.10958263]
[1769504507643,0.10870797,88203.0,88184.0,0.10958263]
[1769504507848,0.10870797,88207.0,88188.0,0.10958263]
[1769504508046,0.1022,88206.0,88172.0,0.10216]
[1769504508248,0.1022,88209.0,88196.0,0.011353]
[1769504508440,0.1022,88215.0,88189.0,0.1022]
[1769504508635,0.1022,88215.0,88201.0,0.011352]
[1769504508941,0.1022,88215.0,88198.0,0.011353]
[1769504509941,0.1022,88215.0,88199.0,0.10958263]
[1769504510140,0.011351,88214.0,88199.0,0.10958263]
[1769504510349,0.011351,88212.0,88199.0,0.10958263]
[1769504510547,0.10870797,88211.0,88199.0,0.10958263]
[1769504511250,0.10870797,88214.0,88199.0,0.10958263]
[1769504511947,0.12005897,88214.0,88199.0,0.10958263]
[1769504521353,0.11997049,88206.0,88192.0,0.10216]
[1769504521856,0.011352,88204.0,88192.0,0.10216]
[1769504522057,0.13132249,88204.0,88192.0,0.10216]
[1769504522557,0.13132249,88204.0,88189.0,0.11390046]
[1769504522755,0.11997049,88199.0,88184.0,0.10216]
[1769504523162,0.11997049,88199.0,88184.0,0.21606046]
[1769504523853,0.11997049,88199.0,88185.0,0.11390046]
[1769504524955,0.11997049,88197.0,88185.0,0.11390046]
[1769504525558,0.11997049,88194.0,88182.0,0.10216]
[1769504526459,0.11997049,88199.0,88183.0,0.11390046]
[1769504527050,0.11997049,88191.0,88182.0,0.10216]
[1769504527653,0.11997049,88191.0,88174.0,0.11390046]
[1769504529366,0.11997049,88191.0,88176.0,0.11390046]
[1769504529553,0.10216,88195.0,88178.0,0.11390046]
[1769504530463,0.10216,88195.0,88180.0,0.11390046]
[1769504538665,0.10216,88195.0,88176.0,0.11390046]
[1769504538666,0.16444788,88190.0,88176.0,0.11390046]
[1769504538865,0.11997049,88189.0,88176.0,0.11390046]
[1769504543375,0.13132449,88189.0,88176.0,0.11390046]
[1769504543577,0.13132449,88189.0,88172.0,0.10216]
[1769504543777,0.13132449,88189.0,88172.0,0.21303686]
[1769504543984,0.13132449,88189.0,88173.0,0.11087686]
[1769504545083,0.11997049,88189.0,88173.0,0.11087686]
[1769504546682,0.11997049,88189.0,88176.0,0.11519895]
[1769504546883,0.11997049,88189.0,88177.0,0.011356]
[1769504547583,0.10863113,88194.0,88180.0,0.12655395]
[1769504547779,0.16444788,88190.0,88180.0,0.12655395]
[1769504549280,0.16444788,88190.0,88182.0,0.011355]
[1769504549985,0.16444788,88190.0,88180.0,0.11519895]
[1769504550190,0.16444788,88190.0,88178.0,0.011355]
[1769504550785,0.16444788,88190.0,88180.0,0.011355]
[1769504551492,0.27307901,88190.0,88180.0,0.011355]
[1769504552586,0.10863113,88189.0,88180.0,0.011355]
[1769504552884,0.07523901,88195.0,88180.0,0.011355]
[1769504553086,0.16444788,88190.0,88180.0,0.011355]
[1769504553482,0.16444788,88190.0,88182.0,0.011355]
[1769504553680,0.16444788,88190.0,88176.0,0.11519895]
[1769504553875,0.16444788,88190.0,88177.0,0.011356]
[1769504554075,0.16444788,88190.0,88179.0,0.011355]
[1769504554789,0.011354,88189.0,88173.0,0.011356]
[1769504554990,0.10863113,88182.0,88171.0,0.1022]
[1769504555690,0.10863113,88182.0,88171.0,0.113556]
[1769504556888,0.011354,88188.0,88171.0,0.113556]
[1769504556889,0.10863113,88180.0,88171.0,0.113556]
[1769504557192,0.10863113,88180.0,88171.0,0.1022]
[1769504565797,0.11998613,88180.0,88166.0,0.01134218]
[1769504565999,0.10863113,88174.0,88161.0,0.1022]
[1769504566187,0.10863113,88170.0,88161.0,0.1022]
[1769504566701,0.10863113,88170.0,88159.0,0.00010306]
[1769504568704,0.10863113,88167.0,88153.0,0.00794079]
[1769504568890,0.10863113,88162.0,88146.0,0.01134475]
[1769504569288,0.10863113,88162.0,88146.0,0.02270475]
[1769504569486,0.10863113,88162.0,88146.0,0.1379037]
[1769504569698,0.10863113,88160.0,88146.0,0.1379037]
[1769504570096,0.10863113,88160.0,88150.0,0.16444788]
[1769504570292,0.00010364,88161.0,88151.0,0.011359]
[1769504571300,0.00010364,88161.0,88151.0,0.12655795]
[1769504571501,0.1022,88163.0,88151.0,0.12655795]
[1769504571703,0.1022,88164.0,88151.0,0.12655795]
[1769504571900,0.10863113,88169.0,88151.0,0.12655795]
[1769504572093,0.1022,88165.0,88151.0,0.12655795]
[1769504573596,0.1022,88165.0,88153.0,0.12655795]
[1769504578402,0.1022,88165.0,88155.0,0.011358]
[1769504580201,0.1022,88165.0,88153.0,0.11519895]
[1769504580696,0.1022,88165.0,88155.0,0.11210202]
[1769504580904,0.21316396,88165.0,88151.0,0.12346102]
[1769504581104,0.11096396,88164.0,88151.0,0.12346102]
[1769504581301,0.11096396,88160.0,88146.0,0.01134475]
[1769504581528,0.11096396,88160.0,88134.0,0.02621793]
[1769504581529,0.11096396,88153.0,88134.0,0.02621793]
[1769504581696,0.11096396,88143.0,88134.0,0.03757893]
[1769504582008,0.11096396,88149.0,88134.0,0.02621793]
[1769504582394,0.11096396,88147.0,88134.0,0.02621793]
[1769504583600,0.11096396,88147.0,88138.0,0.011361]
[1769504584099,0.11096396,88147.0,88135.0,0.011361]
[1769504584299,0.11096396,88147.0,88139.0,0.01136]
[1769504584705,0.16444788,88150.0,88139.0,0.01136]
[1769504585101,0.27541184,88150.0,88139.0,0.01136]
[1769504585294,0.11096396,88149.0,88136.0,0.12346302]
[1769504585708,0.11096396,88149.0,88139.0,0.011361]
[1769504589011,0.011357,88163.0,88143.0,0.01136]
[1769504589209,0.011357,88167.0,88146.0,0.12346202]
[1769504589611,0.16444788,88160.0,88146.0,0.12346202]
[1769504589907,0.16444788,88160.0,88146.0,0.01136]
[1769504590500,0.16444788,88160.0,88134.0,0.02621793]
[1769504590501,0.16444788,88160.0,88142.0,0.12346202]
[1769504590710,0.16444788,88160.0,88142.0,0.01136]
[1769504591007,0.11096396,88159.0,88142.0,0.01136]
[1769504593312,0.11096396,88159.0,88144.0,0.01136]
[1769504594206,0.11096396,88159.0,88138.0,0.11210202]
[1769504594512,0.11096396,88159.0,88141.0,0.11210202]
[1769504594912,0.11096396,88159.0,88146.0,0.01136]
[1769504595112,0.11096396,88159.0,88150.0,0.011359]
[1769504595308,0.11096396,88159.0,88141.0,0.11210202]
[1769504595709,0.11096396,88159.0,88143.0,0.11210202]
[1769504596212,0.11096396,88159.0,88151.0,0.011359]
[1769504597214,0.11096396,88159.0,88122.0,0.03600137]
[1769504597416,0.11096396,88159.0,88150.0,0.011359]
[1769504599615,0.11096396,88159.0,88153.0,0.011359]
[1769504600003,0.11096396,88159.0,88139.0,0.11210202]
[1769504600209,0.11096396,88159.0,88150.0,0.011359]
[1769504602815,0.11096396,88159.0,88152.0,0.011359]
[1769504604008,9.6e-07,88159.0,88154.0,0.011359]
[1769504604219,0.011356,88172.0,88156.0,0.011358]
[1769504604419,0.22525148,88176.0,88154.0,0.11691641]
[1769504604620,0.011356,88176.0,88156.0,0.011358]
[1769504604820,0.11343591,88174.0,88158.0,0.011358]
[1769504605020,0.011356,88176.0,88158.0,0.011358]
[1769504605320,0.1134224,88175.0,88158.0,0.011358]
[1769504606124,0.10871111,88174.0,88158.0,0.011358]
[1769504606417,0.10871111,88170.0,88154.0,0.011358]
[1769504606621,0.10871111,88170.0,88150.0,0.11691641]
[1769504606622,0.10871111,88168.0,88153.0,0.011359]
[1769504606814,0.10871111,88168.0,88150.0,0.12827541]
[1769504607015,0.10871111,88168.0,88150.0,0.011359]
[1769504607215,0.10871111,88168.0,88152.0,0.011359]
[1769504607415,0.10871111,88168.0,88154.0,0.011358]
[1769504608826,0.12006811,88168.0,88149.0,0.011359]
[1769504610324,0.12006811,88168.0,88151.0,0.011359]
[1769504610525,0.10871111,88168.0,88148.0,0.011359]
[1769504610826,0.12006811,88168.0,88150.0,0.011359]
[1769504611711,0.10871111,88168.0,88153.0,0.011359]
[1769504612231,0.10871111,88168.0,88156.0,0.011358]
[1769504612417,0.10871111,88168.0,88149.0,0.11691641]
[1769504612616,0.10871111,88168.0,88155.0,0.011358]
[1769504615027,0.10871111,88168.0,88157.0,0.011358]
[1769504617832,0.10871111,88168.0,88154.0,0.011359]
[1769504619039,0.10871111,88168.0,88152.0,0.011359]
[1769504619229,0.10871111,88168.0,88155.0,0.011358]
[1769504620029,0.10871111,88168.0,88158.0,0.011358]
[1769504620234,0.10871111,88168.0,88151.0,0.11691641]
[1769504620426,0.10871111,88168.0,88147.0,0.11691641]
[1769504621433,0.10871111,88168.0,88155.0,0.011358]
[1769504621634,0.10871111,88168.0,88157.0,0.011358]
[1769504627840,0.10871111,88168.0,88150.0,0.11691641]
[1769504628041,0.10871111,88168.0,88161.0,0.011358]
[1769504631343,0.011356,88177.0,88161.0,0.011358]
[1769504631738,0.11342433,88176.0,88161.0,0.011358]
[1769504633845,0.11342433,88176.0,88152.0,0.11691641]
[1769504634535,0.11342433,88176.0,88160.0,0.011358]
[1769504635144,0.011356,88175.0,88160.0,0.011358]
[1769504635746,0.11341983,88174.0,88160.0,0.011358]
[1769504636946,0.19364995,88181.0,88160.0,0.011358]
[1769504637146,0.11342112,88173.0,88160.0,0.011358]
[1769504637448,0.09007549,88183.0,88160.0,0.011358]
[1769504637645,0.11342112,88182.0,88160.0,0.011358]
[1769504638048,0.0730643,88187.0,88160.0,0.011358]
[1769504638348,0.011355,88179.0,88160.0,0.011358]
[1769504638548,0.011356,88177.0,88160.0,0.011358]
[1769504638939,0.11341597,88176.0,88160.0,0.011358]
[1769504640452,0.11341597,88176.0,88162.0,0.011357]
[1769504640752,0.011355,88182.0,88162.0,0.011357]
[1769504640944,0.11341983,88181.0,88162.0,0.011357]
[1769504641143,0.011355,88182.0,88162.0,0.011357]
[1769504641345,0.22578278,88175.0,88157.0,0.12]
[1769504642051,0.11341468,88174.0,88157.0,0.12]
[1769504642549,0.011355,88184.0,88155.0,0.011358]
[1769504642550,0.22578278,88184.0,88164.0,0.12]
[1769504642741,0.011355,88183.0,88164.0,0.011357]
[1769504643145,0.33920518,88186.0,88164.0,0.011357]
[1769504643455,0.23678278,88187.0,88164.0,0.011357]
[1769504643644,0.11341276,88185.0,88164.0,0.011357]
[1769504643844,0.011,88187.0,88164.0,0.011357]
[1769504644246,0.11341276,88186.0,88164.0,0.011357]
[1769504644452,0.11341276,88186.0,88166.0,0.011357]
[1769504645340,0.011355,88185.0,88166.0,0.011357]
[1769504645949,0.11340954,88184.0,88163.0,0.011357]
[1769504646154,0.011355,88182.0,88165.0,0.011357]
[1769504646655,0.11341276,88181.0,88165.0,0.011357]
[1769504648561,0.011355,88180.0,88162.0,0.011358]
[1769504648744,0.11508491,88179.0,88142.0,0.036477]
[1769504648944,0.011,88187.0,88140.0,0.13584876]
[1769504648945,0.11508491,88177.0,88143.0,0.18433288]
[1769504649256,0.11508491,88177.0,88160.0,0.011358]
[1769504650658,0.11508491,88177.0,88162.0,0.011358]
[1769504652156,0.11508491,88177.0,88164.0,0.011357]
[1769504653364,0.11508491,88177.0,88166.0,0.011357]
[1769504654461,0.11508491,88177.0,88168.0,0.011357]
[1769504654666,0.11508491,88177.0,88143.0,0.07946948]
[1769504654856,0.11508491,88177.0,88144.0,0.14788247]
[1769504655165,0.11508491,88177.0,88145.0,0.14788247]
[1769504655363,0.11508491,88177.0,88168.0,0.011357]
[1769504656267,0.11508491,88177.0,88163.0,0.011357]
[1769504657268,0.11508491,88177.0,88156.0,0.11614572]
[1769504657660,0.11508491,88169.0,88156.0,0.11614572]
[1769504657867,0.11508491,88169.0,88159.0,0.011358]
[1769504658063,0.11508491,88169.0,88156.0,0.11614572]
[1769504658256,0.11508491,88169.0,88161.0,0.011358]
[1769504658460,0.11508491,88169.0,88159.0,0.011358]
[1769504660070,0.11508491,88169.0,88156.0,0.11614572]
[1769504660569,0.11508491,88169.0,88159.0,0.011358]
[1769504661377,0.11508491,88169.0,88161.0,0.011358]
[1769504661961,0.11508491,88169.0,88156.0,0.11614572]
[1769504662370,0.11508491,88169.0,88161.0,0.011358]
[1769504662570,0.11508491,88169.0,88156.0,0.11614572]
[1769504663469,0.11508491,88169.0,88163.0,0.011357]
[1769504663772,0.11508491,88169.0,88156.0,0.11614572]
[1769504664377,0.11508491,88169.0,88163.0,0.011357]
[1769504664677,0.11508491,88169.0,88156.0,0.11614572]
[1769504666377,0.11508491,88169.0,88162.0,0.011357]
[1769504666678,9.1e-07,88169.0,88164.0,0.011357]
[1769504666974,0.11342691,88168.0,88133.0,0.11931323]
[1769504667278,0.1645377,88150.0,88141.0,0.01136]
[1769504667679,0.11344042,88173.0,88133.0,0.11931323]
[1769504667881,0.11344042,88173.0,88131.0,0.011362]
[1769504667882,0.1645377,88160.0,88145.0,0.01136]
[1769504668680,0.11952347,88159.0,88145.0,0.01136]
[1769504674285,0.07746117,88160.0,88145.0,0.01136]
[1769504676384,0.00097098,88159.0,88145.0,0.01136]
[1769504679694,9.8e-07,88159.0,88142.0,0.11931323]
[1769504680288,9.8e-07,88159.0,88147.0,0.011359]
[1769504683995,9.8e-07,88159.0,88149.0,0.011359]
[1769504685800,9.8e-07,88159.0,88146.0,0.01136]
[1769504688998,0.07746117,88160.0,88149.0,0.131359]
[1769504689299,0.16800793,88160.0,88147.0,0.011359]
[1769504689690,0.16800793,88160.0,88150.0,0.011359]
[1769504689886,0.16800793,88160.0,88153.0,0.011359]
[1769504690087,0.09054676,88160.0,88153.0,0.011359]
[1769504691103,0.09054676,88160.0,88155.0,0.011358]
[1769504692404,0.22578278,88175.0,88159.0,0.011358]
[1769504692405,0.1645377,88170.0,88159.0,0.011358]
[1769504692596,0.011355,88179.0,88161.0,0.011358]
[1769504692800,0.1645377,88170.0,88161.0,0.011358]
[1769504693403,0.1645377,88170.0,88152.0,0.12]
[1769504694305,0.1645377,88170.0,88157.0,0.011358]
[1769504695506,0.1645377,88170.0,88154.0,0.011359]
[1769504695706,0.1645377,88170.0,88156.0,0.011358]
[1769504696605,0.1645377,88170.0,88158.0,0.011358]
[1769504698605,0.10224,88169.0,88153.0,0.12]
[1769504699908,0.10224,88168.0,88153.0,0.12]
[1769504700312,0.10224,88168.0,88154.0,0.011359]
[1769504701912,0.10224,88168.0,88151.0,0.011359]
[1769504702304,0.10224,88168.0,88153.0,0.011359]
[1769504703010,0.10224,88168.0,88150.0,0.12]
[1769504703313,0.10224,88168.0,88156.0,0.011358]
[1769504704208,0.10224,88168.0,88158.0,0.11999763]
[1769504704410,0.10224,88168.0,88161.0,0.011358]
[1769504705609,0.10224,88168.0,88159.0,0.011358]
[1769504705916,0.10224,88168.0,88156.0,0.011358]
[1769504706712,0.22578278,88182.0,88162.0,0.11998958]
[1769504706908,0.48716,88178.0,88163.0,0.011357]
[1769504707308,0.00077946,88177.0,88163.0,0.011357]
[1769504707719,0.00077946,88176.0,88163.0,0.011357]
[1769504713312,0.00077946,88176.0,88160.0,0.011358]
[1769504713819,0.00077946,88176.0,88160.0,0.13039397]
[1769504714311,0.00077946,88176.0,88162.0,0.011357]
[1769504715815,0.00245662,88167.0,88143.0,0.11918112]
[1769504716118,0.00245662,88152.0,88142.0,0.01136]
[1769504716324,0.00245662,88152.0,88144.0,0.01136]
[1769504716514,0.1022,88155.0,88144.0,0.01136]
[1769504716714,0.10465662,88155.0,88144.0,0.01136]
[1769504719719,0.10465662,88155.0,88141.0,0.13054112]
[1769504719920,0.1022,88155.0,88141.0,0.13054112]
[1769504721122,0.1022,88155.0,88141.0,0.11918112]
[1769504721318,0.113559,88155.0,88141.0,0.11918112]
[1769504721619,0.113559,88155.0,88131.0,0.1022]
[1769504721620,0.011359,88151.0,88131.0,0.1022]
[1769504721819,0.1022,88155.0,88132.0,0.011361]
[1769504721820,0.29916,88150.0,88132.0,0.011361]
[1769504723722,0.29916,88150.0,88134.0,0.011361]
[1769504726131,0.29916,88150.0,88136.0,0.011361]
[1769504726325,0.29916,88150.0,88138.0,0.011361]
[1769504731518,0.29916,88150.0,88135.0,0.12]
[1769504731725,0.29916,88150.0,88136.0,0.12]
[1769504733330,0.29916,88150.0,88140.0,0.01136]
[1769504735533,0.29916,88150.0,88136.0,0.12]
[1769504735731,0.29916,88150.0,88132.0,0.131361]
[1769504736332,0.29916,88150.0,88134.0,0.011361]
[1769504737917,0.29916,88150.0,88134.0,0.131361]
[1769504738128,0.29916,88150.0,88140.0,0.01136]
[1769504739834,0.29916,88150.0,88142.0,0.01136]
[1769504743642,0.29916,88150.0,88144.0,0.01136]
[1769504743840,0.10224,88149.0,88144.0,0.01136]
[1769504744040,0.10224,88148.0,88144.0,0.01136]
[1769504744237,0.21467193,88148.0,88142.0,0.01136]
[1769504745642,8.1e-07,88147.0,88142.0,0.01136]
[1769504746245,8.1e-07,88147.0,88141.0,0.01136]
[1769504747045,8.1e-07,88147.0,88128.0,0.11999972]
[1769504748444,8.1e-07,88147.0,88138.0,0.011361]
[1769504749747,0.10224081,88147.0,88134.0,0.12]
[1769504750148,0.10224081,88147.0,88140.0,0.01136]
[1769504750356,0.10224081,88147.0,88142.0,0.01136]
[1769504751166,0.10224,88147.0,88144.0,0.01136]
[1769504752065,0.10224,88147.0,88135.0,0.12]
[1769504752066,0.10224,88147.0,88141.0,0.01136]
[1769504754470,0.10224,88148.0,88143.0,0.01136]
[1769504756572,0.10224,88148.0,88145.0,0.01136]
[1769504756766,0.59388,88151.0,88135.0,0.12]
[1769504758773,0.59388,88151.0,88141.0,0.01136]
[1769504762871,0.011358,88159.0,88142.0,0.12]
[1769504763076,0.28218263,88169.0,88150.0,0.011359]
[1769504763077,0.4964,88162.0,88150.0,0.011359]
[1769504763279,0.4964,88161.0,88156.0,0.011358]
[1769504763473,0.4964,88161.0,88153.0,0.011359]
[1769504764165,0.4964,88161.0,88149.0,0.011359]
[1769504764570,0.4964,88161.0,88140.0,0.1136]
[1769504765077,0.011358,88160.0,88140.0,0.1136]
[1769504765671,0.011358,88160.0,88137.0,0.011361]
[1769504765867,0.11344299,88159.0,88139.0,0.01136]
[1769504768174,0.22578278,88158.0,88132.0,0.011361]
[1769504768379,0.23714078,88157.0,88132.0,0.011361]
[1769504768579,0.22578278,88156.0,88127.0,0.011362]
[1769504768779,0.22578278,88154.0,88127.0,0.011362]
[1769504768971,0.5496,88153.0,88127.0,0.011362]
[1769504769277,0.11344942,88152.0,88130.0,0.011362]
[1769504771477,0.11344942,88152.0,88133.0,0.011361]
[1769504773179,0.11344942,88152.0,88136.0,0.011361]
[1769504773880,0.3392322,88152.0,88133.0,0.12]
[1769504774067,0.3392322,88152.0,88137.0,0.011361]
[1769504775882,0.3392322,88152.0,88140.0,0.01136]
[1769504776083,0.11344942,88152.0,88140.0,0.01136]
[1769504776276,0.11344942,88152.0,88137.0,0.011361]
[1769504776877,0.11344942,88152.0,88133.0,0.12]
[1769504778482,0.11344942,88152.0,88141.0,0.01136]
[1769504781084,0.11344942,88152.0,88133.0,0.12]
[1769504782386,0.11344942,88152.0,88138.0,0.011361]
[1769504788089,0.11344942,88152.0,88142.0,0.01136]
[1769504788291,0.11344942,88152.0,88133.0,0.12]
[1769504788894,0.11344942,88152.0,88142.0,0.01136]
[1769504789085,0.5496,88153.0,88140.0,0.16460635]
[1769504789294,0.60868,88152.0,88140.0,0.28460635]
[1769504789686,0.60868,88152.0,88146.0,0.01136]
[1769504789896,0.60868,88152.0,88141.0,0.12]
[1769504790094,0.50672,88158.0,88153.0,0.011359]
[1769504791493,0.50672,88158.0,88150.0,0.011359]
[1769504792396,0.50672,88158.0,88147.0,0.011359]
[1769504794997,0.30132,88158.0,88147.0,0.011359]
[1769504796090,0.30132,88158.0,88149.0,0.011359]
[1769504798192,0.30132,88158.0,88141.0,0.12]
[1769504798394,0.30132,88158.0,88149.0,0.011359]